fUST/lending_fUST_20250129
["ID","MTS","AMOUNT","RATE_DAILY","PERIOD"]
[350761227,1738110648494,-3546.39,0.00018356,2]
[350761228,1738110648504,-811.74,0.00018356,2]
[350761230,1738110648514,-872.67,0.00018356,2]
[350761232,1738110648524,-500.0,0.00018356,2]
[350761234,1738110648534,-4557.93,0.00018356,2]
[350761236,1738110648546,-1025.43,0.00018356,2]
[350761238,1738110648556,-500.0,0.00018356,2]
[350761240,1738110648566,-500.0,0.00018356,2]
[350761242,1738110648575,-500.0,0.00018356,2]
[350761244,1738110648585,-11041.99,0.00018356,2]
[350761246,1738110648596,-500.0,0.00018356,2]
[350761248,1738110648606,-500.0,0.00018356,2]
[350761250,1738110648616,-917.17,0.00018356,2]
[350761252,1738110648627,-890.04,0.00018356,2]
[350761254,1738110648637,-500.0,0.00018356,2]
[350761256,1738110648646,-1773.7,0.00018356,2]
[350761258,1738110648657,-500.0,0.00018356,2]
[350761260,1738110648666,-952.36,0.00018356,2]
[350761262,1738110648676,-500.0,0.00018356,2]
[350761264,1738110648686,-500.0,0.00018356,2]
[350761266,1738110648696,-150.298728,0.000184,2]
[350761268,1738110648705,-175.61772484,0.00018438,2]
[350761270,1738110648716,-151.0,0.00018468,4]
[350761272,1738110648726,-29630.06098925,0.00018492,5]
[350761274,1738110648735,-93000.05980985,0.00018492,5]
[350761276,1738110648744,-500.0,0.00018493,2]
[350761278,1738110648756,-500.0,0.00018493,2]
[350761280,1738110648765,-225.72893711,0.00018493,2]
[350761282,1738110648776,-3696.51,0.00018493,2]
[350761284,1738110648785,-500.0,0.00018493,2]
[350761286,1738110648797,-500.0,0.00018493,2]
[350761288,1738110648807,-1432.27,0.00018493,2]
[350761290,1738110648818,-2551.59,0.00018493,2]
[350761293,1738110648828,-500.0,0.00018493,2]
[350761295,1738110648839,-3546.39,0.00018493,2]
[350761297,1738110648850,-811.74,0.00018493,2]
[350761299,1738110648860,-872.67,0.00018493,2]
[350761301,1738110648870,-500.0,0.00018493,2]
[350761303,1738110648880,-4557.93,0.00018493,2]
[350761305,1738110648890,-1025.43,0.00018493,2]
[350761307,1738110648900,-272.75253668,0.00018493,2]
[350761309,1738110648910,-500.0,0.00018493,2]
[350761311,1738110648919,-500.0,0.00018493,2]
[350761313,1738110648930,-11041.99,0.00018493,2]
[350761315,1738110648940,-500.0,0.00018493,2]
[350761318,1738110648964,-500.0,0.00018493,2]
[350761320,1738110648975,-917.17,0.00018493,2]
[350761322,1738110648986,-890.04,0.00018493,2]
[350761325,1738110648998,-269.99305667,0.00018493,2]
[350761327,1738110649009,-1773.7,0.00018493,2]
[350761329,1738110649020,-500.0,0.00018493,2]
[350761331,1738110649032,-952.36,0.00018493,2]
[350761333,1738110649044,-439.57039868,0.00018493,2]
[350761335,1738110649055,-500.0,0.00018493,2]
[350761337,1738110649065,-500.0,0.000185,2]
[350761339,1738110649076,-353.5775999,0.00018548,2]
[350761341,1738110649087,-211.358544,0.00018585,2]
[350761343,1738110649098,-211.358544,0.00018585,2]
[350761345,1738110649108,-154.0,0.00018586,2]
[350761347,1738110649118,-254.540223,0.00018586,2]
[350761349,1738110649129,-254.540223,0.00018586,2]
[350761351,1738110649139,-152.53,0.000186,2]
[350761353,1738110649149,-152.53,0.000186,2]
[350761355,1738110649160,-500.0,0.0001863,2]
[350761357,1738110649171,-500.0,0.0001863,2]
[350761360,1738110649181,-500.0,0.0001863,2]
[350761362,1738110649192,-637.33150077,0.0001863,2]
[350761364,1738110649202,-264.525609,0.0001863,2]
[350761366,1738110649214,-3696.51,0.0001863,2]
[350761368,1738110649225,-500.0,0.0001863,2]
[350761370,1738110649235,-500.0,0.0001863,2]
[350761372,1738110649246,-151.0,0.0001863,2]
[350761374,1738110649257,-1432.27,0.0001863,2]
[350761376,1738110649268,-2551.59,0.0001863,2]
[350761378,1738110649279,-500.0,0.0001863,2]
[350761380,1738110649290,-3546.39,0.0001863,2]
[350761382,1738110649300,-811.74,0.0001863,2]
[350761384,1738110649311,-872.67,0.0001863,2]
[350761386,1738110649322,-500.0,0.0001863,2]
[350761388,1738110649332,-4557.93,0.0001863,2]
[350761390,1738110649342,-1025.43,0.0001863,2]
[350761392,1738110649352,-500.0,0.0001863,2]
[350761395,1738110649364,-500.0,0.0001863,2]
[350761397,1738110649380,-11041.99,0.0001863,2]
[350761399,1738110649390,-500.0,0.0001863,2]
[350761401,1738110649400,-500.0,0.0001863,2]
[350761403,1738110649410,-917.17,0.0001863,2]
[350761405,1738110649419,-890.04,0.0001863,2]
[350761407,1738110649430,-1609.81648869,0.0001863,2]
[350761437,1738110649719,-163.88351131,0.0001863,2]
[350761439,1738110649729,-500.0,0.0001863,2]
[350761441,1738110649739,-952.36,0.0001863,2]
[350761443,1738110649748,-500.0,0.0001863,2]
[350761445,1738110649758,-700.0,0.0001866,2]
[350761447,1738110649768,-299.0,0.0001866,2]
[350761449,1738110649778,-175.61772484,0.00018685,2]
[350761451,1738110649787,-214.5432881,0.00018685,2]
[350761453,1738110649801,-215.4605405,0.00018685,2]
[350761455,1738110649811,-153.0,0.00018685,2]
[350761457,1738110649820,-153.0,0.00018685,2]
[350761459,1738110649830,-154.3274537,0.00018685,2]
[350761461,1738110649840,-154.3274537,0.00018685,2]
[350761463,1738110649849,-215.4605405,0.00018685,2]
[350761465,1738110649860,-154.3274537,0.00018685,2]
[350761467,1738110649869,-153.0,0.00018685,2]
[350761469,1738110649880,-215.2684922,0.00018685,2]
[350761471,1738110649889,-153.0,0.00018685,2]
[350761473,1738110649900,-154.1389741,0.00018685,2]
[350761475,1738110649910,-153.0,0.00018685,2]
[350761477,1738110649919,-153.0,0.00018685,2]
[350761479,1738110649929,-153.0,0.00018685,2]
[350761481,1738110649939,-153.0,0.00018685,2]
[350761483,1738110649949,-153.0,0.00018685,2]
[350761485,1738110649962,-151.0,0.00018686,2]
[350761487,1738110649972,-155.539808,0.0001872,15]
[350761489,1738110649982,-151.0,0.00018766,2]
[350761491,1738110649992,-500.0,0.00018767,2]
[350761493,1738110650003,-671.3451486,0.00018767,2]
[350761495,1738110650013,-3696.51,0.00018767,2]
[350761497,1738110650023,-491.57334193,0.00018767,2]
[350761499,1738110650036,-500.0,0.00018767,2]
[350761501,1738110650047,-1432.27,0.00018767,2]
[350761504,1738110650057,-1430.29984882,0.00018767,2]
[350761516,1738110650172,-457.31997824,0.00018767,2]
[350761577,1738110650743,-500.0,0.00016438,2]
[350761579,1738110650753,-500.0,0.00016438,2]
[350761580,1738110650762,-500.0,0.00016575,2]
[350761582,1738110650772,-500.0,0.00016575,2]
[350761584,1738110650781,-500.0,0.00016712,2]
[350761586,1738110650791,-500.0,0.00016849,2]
[350761588,1738110650800,-500.0,0.00016986,2]
[350761590,1738110650810,-500.0,0.00017123,2]
[350761592,1738110650819,-500.0,0.0001726,2]
[350761594,1738110650828,-663.97017294,0.00018767,2]
[350761596,1738110650838,-500.0,0.00018767,2]
[350761598,1738110650847,-254.540223,0.00018767,2]
[350761600,1738110650857,-254.540223,0.00018767,2]
[350761602,1738110650866,-3546.39,0.00018767,2]
[350761604,1738110650876,-811.74,0.00018767,2]
[350761606,1738110650885,-872.67,0.00018767,2]
[350761608,1738110650894,-500.0,0.00018767,2]
[350761610,1738110650904,-4557.93,0.00018767,2]
[350761612,1738110650913,-1025.43,0.00018767,2]
[350761614,1738110650923,-390.12966575,0.00018767,2]
[350761616,1738110650932,-246.11897181,0.00018767,2]
[350761619,1738110650947,-253.88102819,0.00018767,2]
[350761621,1738110650960,-1607.21544757,0.00018767,2]
[350762170,1738110792601,223.775389,0.00013973,2]
[350762172,1738111020347,473.4,0.00010959,2]
[350762203,1738111832298,-162.865848,0.0001529,2]
[350762206,1738111832308,-166.0,0.00015445,2]
[350762208,1738111832319,-159.3526997,0.00015488,2]
[350762209,1738111832332,-5286.8389165,0.00015547,2]
[350762211,1738111832341,-300.0,0.00016436,2]
[350762214,1738111832351,-500.0,0.00016437,2]
[350762216,1738111832360,-500.0,0.00016437,2]
[350762218,1738111832371,-501.59740139,0.00016437,2]
[350762220,1738111832381,-500.0,0.00016437,2]
[350762222,1738111832390,-500.0,0.00016437,2]
[350762224,1738111832400,-500.0,0.00016437,2]
[350762226,1738111832410,-500.0,0.00016437,2]
[350762228,1738111832419,-500.0,0.00016437,2]
[350762230,1738111832429,-500.0,0.00016437,2]
[350762232,1738111832439,-500.0,0.00016437,2]
[350762234,1738111832448,-473.75271524,0.00016437,2]
[350762236,1738111832457,-500.0,0.00016437,2]
[350762238,1738111832467,-500.0,0.00016437,2]
[350762240,1738111832476,-500.0,0.00016437,2]
[350762242,1738111832486,-500.0,0.00016437,2]
[350762245,1738111832496,-500.0,0.00016437,2]
[350762247,1738111832506,-500.0,0.00016437,2]
[350762253,1738111832628,-500.0,0.00016437,2]
[350762254,1738111832639,-500.0,0.00016437,2]
[350762255,1738111832650,-500.0,0.00016437,2]
[350762256,1738111832659,-500.0,0.00016437,2]
[350762257,1738111832670,-500.0,0.00016437,2]
[350762258,1738111832680,-500.0,0.00016437,2]
[350762259,1738111832690,-500.0,0.00016437,2]
[350762260,1738111832700,-500.0,0.00016437,2]
[350762261,1738111832710,-407.75041054,0.00016437,2]
[350762262,1738111832720,-500.0,0.00016437,2]
[350762263,1738111832730,-500.0,0.00016437,2]
[350762264,1738111832739,-500.0,0.00016437,2]
[350762265,1738111832749,-500.0,0.00016437,2]
[350762266,1738111832759,-500.0,0.00016437,2]
[350762267,1738111832769,-500.0,0.00016437,2]
[350762268,1738111832779,-500.0,0.00016437,2]
[350762270,1738111832789,-616.56569802,0.00016438,2]
[350762272,1738111832799,-500.0,0.00016438,2]
[350762274,1738111832808,-500.0,0.00016438,2]
[350762276,1738111832821,-500.0,0.00016438,2]
[350762277,1738111832831,-240.3224408,0.00016438,2]
[350762279,1738111832841,-500.0,0.00016438,2]
[350762281,1738111832851,-500.0,0.00016438,2]
[350762283,1738111832860,-500.0,0.00016438,2]
[350762285,1738111832870,-500.0,0.00016438,2]
[350762287,1738111832880,-500.0,0.00016438,2]
[350762288,1738111832889,-500.0,0.00016438,2]
[350762289,1738111832899,-500.0,0.00016438,2]
[350762290,1738111832910,-500.0,0.00016438,2]
[350762291,1738111832921,-500.0,0.00016438,2]
[350762292,1738111832931,-500.0,0.00016438,2]
[350762293,1738111832941,-500.0,0.00016438,2]
[350762294,1738111832951,-500.0,0.00016438,2]
[350762295,1738111832961,-500.0,0.00016438,2]
[350762296,1738111832971,-500.0,0.00016438,2]
[350762297,1738111832980,-500.0,0.00016438,2]
[350762298,1738111832989,-500.0,0.00016438,2]
[350762299,1738111832999,-500.0,0.00016438,2]
[350762300,1738111833008,-500.0,0.00016438,2]
[350762301,1738111833018,-500.0,0.00016438,2]
[350762302,1738111833027,-500.0,0.00016438,2]
[350762303,1738111833037,-500.0,0.00016438,2]
[350762304,1738111833047,-500.0,0.00016438,2]
[350762305,1738111833058,-190.84379696,0.00016438,2]
[350762306,1738111833069,-557.60149329,0.00016438,2]
[350762307,1738111833079,-500.0,0.00016438,2]
[350762308,1738111833089,-186.8306868,0.00016438,2]
[350762318,1738111838026,-313.1693132,0.00016438,2]
[350762319,1738111838037,-500.0,0.00016438,2]
[350762320,1738111838047,-443.17068697,0.00016438,2]
[350762321,1738111838060,-147.34931303,0.00016438,2]
[350762322,1738111838071,-352.65068697,0.00016438,2]
[350762323,1738111838085,-147.34931303,0.00016438,2]
[350762324,1738111838095,-121.55079786,0.00016438,2]
[350762325,1738111838108,-378.44920214,0.00016438,2]
[350762326,1738111838119,-500.0,0.00016438,2]
[350762327,1738111838128,-500.0,0.00016438,2]
[350762328,1738111838138,-500.0,0.00016438,2]
[350762329,1738111838148,-500.0,0.00016438,2]
[350762330,1738111838158,-239.58712104,0.00016438,2]
[350762331,1738111838168,-500.0,0.00016438,2]
[350762332,1738111838178,-500.0,0.00016438,2]
[350762333,1738111838188,-500.0,0.00016438,2]
[350762334,1738111838199,-500.0,0.00016438,2]
[350762335,1738111838209,-500.0,0.00016438,2]
[350762336,1738111838219,-500.0,0.00016438,2]
[350762337,1738111838229,-500.0,0.00016438,2]
[350762338,1738111838240,-500.0,0.00016438,2]
[350762339,1738111838250,-601.93,0.00016438,2]
[350762340,1738111838260,-1609.3,0.00016438,2]
[350762341,1738111838270,-500.0,0.00016438,2]
[350762342,1738111838280,-500.0,0.00016438,2]
[350762343,1738111838291,-500.0,0.00016438,2]
[350762344,1738111838301,-500.0,0.00016438,2]
[350762345,1738111838311,-2206.11,0.00016438,2]
[350762346,1738111838327,-6619.11,0.00016438,2]
[350762347,1738111838337,-500.0,0.00016438,2]
[350762348,1738111838346,-621.27,0.00016438,2]
[350762349,1738111838356,-284.31,0.00016438,2]
[350762350,1738111838367,-500.0,0.00016438,2]
[350762351,1738111838377,-500.0,0.00016438,2]
[350762352,1738111838388,-500.0,0.00016438,2]
[350762353,1738111838402,-500.0,0.00016438,2]
[350762354,1738111838414,-500.0,0.00016438,2]
[350762355,1738111838424,-500.0,0.00016438,2]
[350762356,1738111838435,-500.0,0.00016438,2]
[350762357,1738111838444,-500.0,0.00016438,2]
[350762358,1738111838454,-500.0,0.00016438,2]
[350762359,1738111838465,-500.0,0.00016438,2]
[350762360,1738111838475,-500.0,0.00016438,2]
[350762361,1738111838485,-500.0,0.00016438,2]
[350762362,1738111838495,-500.0,0.00016438,2]
[350762363,1738111838505,-500.0,0.00016438,2]
[350762364,1738111838515,-500.0,0.00016438,2]
[350762365,1738111838525,-500.0,0.00016438,2]
[350762366,1738111838534,-500.0,0.00016438,2]
[350762367,1738111838544,-593.38,0.00016438,2]
[350762368,1738111838554,-500.0,0.00016438,2]
[350762369,1738111838564,-500.0,0.00016438,2]
[350762370,1738111838575,-1104.98,0.00016438,2]
[350762371,1738111838584,-500.0,0.00016438,2]
[350762372,1738111838594,-500.0,0.00016438,2]
[350762373,1738111838604,-3063.63,0.00016438,2]
[350762374,1738111838613,-3063.63,0.00016438,2]
[350762375,1738111838624,-500.0,0.00016438,2]
[350762376,1738111838633,-3063.63,0.00016438,2]
[350762377,1738111838643,-3063.63,0.00016438,2]
[350762378,1738111838654,-500.0,0.00016438,2]
[350762379,1738111838664,-500.0,0.00016438,2]
[350762380,1738111838674,-500.0,0.00016438,2]
[350762381,1738111838686,-582.25,0.00016438,2]
[350762382,1738111838699,-500.0,0.00016438,2]
[350762383,1738111838712,-500.0,0.00016438,2]
[350762384,1738111838724,-781.13,0.00016438,2]
[350762385,1738111838733,-500.0,0.00016438,2]
[350762386,1738111838744,-500.0,0.00016438,2]
[350762387,1738111838754,-500.0,0.00016438,2]
[350762388,1738111838763,-2027.4,0.00016438,2]
[350762389,1738111838774,-556.3,0.00016438,2]
[350762390,1738111838783,-500.0,0.00016438,2]
[350762391,1738111838793,-500.0,0.00016438,2]
[350762392,1738111838802,-500.0,0.00016438,2]
[350762393,1738111838813,-500.0,0.00016438,2]
[350762394,1738111838823,-500.0,0.00016438,2]
[350762395,1738111838833,-500.0,0.00016438,2]
[350762396,1738111838842,-203.19,0.00016438,2]
[350762397,1738111838857,-500.0,0.00016438,2]
[350762398,1738111838866,-500.0,0.00016438,2]
[350762399,1738111838876,-500.0,0.00016438,2]
[350762400,1738111838887,-500.0,0.00016438,2]
[350762401,1738111838897,-500.0,0.00016438,2]
[350762402,1738111838907,-500.0,0.00016438,2]
[350762403,1738111838917,-500.0,0.00016438,2]
[350762404,1738111838927,-500.0,0.00016438,2]
[350762405,1738111838936,-500.0,0.00016438,2]
[350762406,1738111838946,-500.0,0.00016438,2]
[350762407,1738111838956,-500.0,0.00016438,2]
[350762408,1738111838965,-500.0,0.00016438,2]
[350762409,1738111838975,-500.0,0.00016438,2]
[350762410,1738111838984,-500.0,0.00016438,2]
[350762411,1738111838994,-912.02,0.00016438,2]
[350762412,1738111839003,-500.0,0.00016438,2]
[350762413,1738111839013,-1309.93,0.00016438,2]
[350762414,1738111839022,-500.0,0.00016438,2]
[350762415,1738111839032,-500.0,0.00016438,2]
[350762416,1738111839041,-500.0,0.00016438,2]
[350762417,1738111839051,-500.0,0.00016438,2]
[350762418,1738111839061,-500.0,0.00016438,2]
[350762419,1738111839071,-500.0,0.00016438,2]
[350762420,1738111839082,-500.0,0.00016438,2]
[350762421,1738111839093,-500.0,0.00016438,2]
[350762422,1738111839103,-600.0,0.00016468,2]
[350762423,1738111839114,-3063.63,0.00016574,2]
[350762424,1738111839124,-500.0,0.00016575,2]
[350762425,1738111839135,-500.0,0.00016575,2]
[350762426,1738111839145,-500.0,0.00016575,2]
[350762427,1738111839155,-500.0,0.00016575,2]
[350762428,1738111839164,-500.0,0.00016575,2]
[350762429,1738111839174,-158.31,0.00016575,2]
[350762430,1738111839183,-601.93,0.00016575,2]
[350762431,1738111839193,-1609.3,0.00016575,2]
[350762432,1738111839202,-297.93002993,0.00016575,2]
[350762433,1738111839212,-500.0,0.00016575,2]
[350762434,1738111839221,-500.0,0.00016575,2]
[350762435,1738111839231,-2206.11,0.00016575,2]
[350762436,1738111839241,-6619.11,0.00016575,2]
[350762437,1738111839250,-621.27,0.00016575,2]
[350762438,1738111839260,-500.0,0.00016575,2]
[350762439,1738111839272,-500.0,0.00016575,2]
[350762440,1738111839282,-500.0,0.00016575,2]
[350762441,1738111839292,-500.0,0.00016575,2]
[350762442,1738111839301,-500.0,0.00016575,2]
[350762443,1738111839311,-640.95,0.00016575,2]
[350762444,1738111839321,-500.0,0.00016575,2]
[350762445,1738111839334,-500.0,0.00016575,2]
[350762446,1738111839344,-593.38,0.00016575,2]
[350762447,1738111839356,-1104.98,0.00016575,2]
[350762448,1738111839367,-500.0,0.00016575,2]
[350762449,1738111839376,-500.0,0.00016575,2]
[350762450,1738111839386,-500.0,0.00016575,2]
[350762451,1738111839395,-582.25,0.00016575,2]
[350762452,1738111839405,-500.0,0.00016575,2]
[350762453,1738111839415,-781.13,0.00016575,2]
[350762454,1738111839425,-2027.4,0.00016575,2]
[350762455,1738111839434,-556.3,0.00016575,2]
[350762456,1738111839443,-500.0,0.00016575,2]
[350762458,1738111839572,-500.0,0.00016575,2]
[350762459,1738111839583,-500.0,0.00016575,2]
[350762460,1738111839593,-500.0,0.00016575,2]
[350762461,1738111839602,-500.0,0.00016575,2]
[350762462,1738111839612,-500.0,0.00016575,2]
[350762463,1738111839622,-500.0,0.00016575,2]
[350762464,1738111839632,-500.0,0.00016575,2]
[350762465,1738111839642,-912.02,0.00016575,2]
[350762466,1738111839651,-1309.93,0.00016575,2]
[350762468,1738111839661,-450.67802591,0.00016575,2]
[350762469,1738111839672,-500.0,0.00016575,2]
[350762470,1738111839681,-500.0,0.0001671,2]
[350762471,1738111839691,-181.58586029,0.0001671,2]
[350762472,1738111839700,-3063.63,0.00016711,2]
[350762473,1738111839711,-645.26,0.00016712,2]
[350762474,1738111839721,-564.19,0.00016712,2]
[350762475,1738111839731,-500.0,0.00016712,2]
[350762476,1738111839740,-601.93,0.00016712,2]
[350762477,1738111839750,-1609.3,0.00016712,2]
[350762478,1738111839759,-500.0,0.00016712,2]
[350762479,1738111839768,-500.0,0.00016712,2]
[350762480,1738111839777,-2206.11,0.00016712,2]
[350762481,1738111839788,-6619.11,0.00016712,2]
[350762482,1738111839798,-621.27,0.00016712,2]
[350762483,1738111839807,-500.0,0.00016712,2]
[350762484,1738111839817,-500.0,0.00016712,2]
[350762485,1738111839827,-500.0,0.00016712,2]
[350762486,1738111839836,-500.0,0.00016712,2]
[350762487,1738111839846,-500.0,0.00016712,2]
[350762488,1738111839855,-500.0,0.00016712,2]
[350762489,1738111839865,-500.0,0.00016712,2]
[350762490,1738111839874,-593.38,0.00016712,2]
[350762491,1738111839884,-1104.98,0.00016712,2]
[350762493,1738111839894,-500.0,0.00016712,2]
[350762494,1738111839904,-500.0,0.00016712,2]
[350762495,1738111839913,-582.25,0.00016712,2]
[350762496,1738111839923,-500.0,0.00016712,2]
[350762497,1738111839932,-781.13,0.00016712,2]
[350762498,1738111839942,-2027.4,0.00016712,2]
[350762499,1738111839951,-556.3,0.00016712,2]
[350762500,1738111839960,-500.0,0.00016712,2]
[350762501,1738111839969,-500.0,0.00016712,2]
[350762502,1738111839978,-612.49015185,0.00016712,2]
[350762503,1738111839987,-500.0,0.00016712,2]
[350762505,1738111839997,-500.0,0.00016712,2]
[350762507,1738111840006,-500.0,0.00016712,2]
[350762508,1738111840016,-912.02,0.00016712,2]
[350762510,1738111840027,-1309.93,0.00016712,2]
[350762511,1738111840036,-3063.63,0.00016848,2]
[350762512,1738111840046,-500.0,0.00016849,2]
[350762513,1738111840055,-601.93,0.00016849,2]
[350762514,1738111840064,-1609.3,0.00016849,2]
[350762515,1738111840075,-500.0,0.00016849,2]
[350762516,1738111840084,-500.0,0.00016849,2]
[350762517,1738111840094,-2206.11,0.00016849,2]
[350762518,1738111840104,-6619.11,0.00016849,2]
[350762519,1738111840115,-621.27,0.00016849,2]
[350762520,1738111840125,-500.0,0.00016849,2]
[350762521,1738111840135,-500.0,0.00016849,2]
[350762522,1738111840154,-500.0,0.00016849,2]
[350762524,1738111840167,-243.63,0.00016849,2]
[350762526,1738111840178,-500.0,0.00016849,2]
[350762527,1738111840188,-500.0,0.00016849,2]
[350762528,1738111840198,-254.94,0.00016849,2]
[350762529,1738111840208,-593.38,0.00016849,2]
[350762530,1738111840219,-1104.98,0.00016849,2]
[350762531,1738111840229,-500.0,0.00016849,2]
[350762532,1738111840240,-500.0,0.00016849,2]
[350762533,1738111840251,-582.25,0.00016849,2]
[350762534,1738111840261,-500.0,0.00016849,2]
[350762535,1738111840271,-781.13,0.00016849,2]
[350762536,1738111840281,-2027.4,0.00016849,2]
[350762537,1738111840291,-556.3,0.00016849,2]
[350762538,1738111840301,-500.0,0.00016849,2]
[350762539,1738111840312,-500.0,0.00016849,2]
[350762540,1738111840327,-500.0,0.00016849,2]
[350762541,1738111840337,-500.0,0.00016849,2]
[350762542,1738111840347,-500.0,0.00016849,2]
[350762543,1738111840357,-912.02,0.00016849,2]
[350762544,1738111840368,-1309.93,0.00016849,2]
[350762545,1738111840378,-3063.63,0.00016985,2]
[350762546,1738111840388,-500.0,0.00016986,2]
[350762547,1738111840399,-601.93,0.00016986,2]
[350762548,1738111840410,-1609.3,0.00016986,2]
[350762549,1738111840420,-500.0,0.00016986,2]
[350762550,1738111840430,-500.0,0.00016986,2]
[350762551,1738111840441,-2206.11,0.00016986,2]
[350762552,1738111840450,-6619.11,0.00016986,2]
[350762553,1738111840460,-621.27,0.00016986,2]
[350762554,1738111840471,-500.0,0.00016986,2]
[350762555,1738111840480,-500.0,0.00016986,2]
[350762556,1738111840490,-500.0,0.00016986,2]
[350762557,1738111840500,-500.0,0.00016986,2]
[350762558,1738111840510,-500.0,0.00016986,2]
[350762559,1738111840520,-593.38,0.00016986,2]
[350762560,1738111840530,-1104.98,0.00016986,2]
[350762561,1738111840541,-500.0,0.00016986,2]
[350762562,1738111840551,-500.0,0.00016986,2]
[350762563,1738111840560,-582.25,0.00016986,2]
[350762564,1738111840571,-500.0,0.00016986,2]
[350762565,1738111840581,-781.13,0.00016986,2]
[350762566,1738111840591,-2027.4,0.00016986,2]
[350762567,1738111840602,-556.3,0.00016986,2]
[350762568,1738111840612,-500.0,0.00016986,2]
[350762569,1738111840622,-500.0,0.00016986,2]
[350762570,1738111840632,-500.0,0.00016986,2]
[350762571,1738111840651,-500.0,0.00016986,2]
[350762572,1738111840668,-500.0,0.00016986,2]
[350762573,1738111840684,-912.02,0.00016986,2]
[350762574,1738111840700,-1309.93,0.00016986,2]
[350762575,1738111840715,-500.0,0.00016991,2]
[350762576,1738111840728,-3063.63,0.00017122,2]
[350762577,1738111840743,-546.1,0.00017123,2]
[350762578,1738111840759,-601.93,0.00017123,2]
[350762579,1738111840772,-1609.3,0.00017123,2]
[350762580,1738111840785,-500.0,0.00017123,2]
[350762581,1738111840800,-500.0,0.00017123,2]
[350762582,1738111840815,-2206.11,0.00017123,2]
[350762583,1738111840828,-6619.11,0.00017123,2]
[350762584,1738111840842,-621.27,0.00017123,2]
[350762585,1738111840858,-500.0,0.00017123,2]
[350762586,1738111840872,-500.0,0.00017123,2]
[350762587,1738111840886,-500.0,0.00017123,2]
[350762588,1738111840899,-500.0,0.00017123,2]
[350762589,1738111840911,-500.0,0.00017123,2]
[350762590,1738111840927,-593.38,0.00017123,2]
[350762591,1738111840940,-1104.98,0.00017123,2]
[350762592,1738111840953,-500.0,0.00017123,2]
[350762593,1738111840971,-500.0,0.00017123,2]
[350762594,1738111840984,-582.25,0.00017123,2]
[350762595,1738111840997,-500.0,0.00017123,2]
[350762596,1738111841008,-781.13,0.00017123,2]
[350762597,1738111841019,-2027.4,0.00017123,2]
[350762598,1738111841032,-556.3,0.00017123,2]
[350762599,1738111841043,-155.71,0.00017123,2]
[350762600,1738111841056,-500.0,0.00017123,2]
[350762601,1738111841069,-500.0,0.00017123,2]
[350762602,1738111841082,-500.0,0.00017123,2]
[350762603,1738111841096,-500.0,0.00017123,2]
[350762604,1738111841109,-912.02,0.00017123,2]
[350762605,1738111841123,-1309.93,0.00017123,2]
[350762606,1738111841137,-3063.63,0.00017259,2]
[350762607,1738111841151,-601.93,0.0001726,2]